[Event "Early-Titled-Tuesday-Blitz-March-05-2024"]
[Site "Chess.com"]
[Date "2024.03.05"]
[Round "9"]
[White "Rud_2008"]
[Black "Dinosaurio_1975"]
[Result "1-0"]
[WhiteElo "2731"]
[BlackElo "2590"]
[TimeControl "180+1"]
[EndTime "9:45:23 PST"]
[Termination "Rud_2008 won on time"]

1. e4 {[%clk 0:03:00.9]} 1... c6 {[%clk 0:02:59.3]} 2. Nf3 {[%clk 0:03:01.1]}
2... d5 {[%clk 0:03:00]} 3. d3 {[%clk 0:03:01.9]} 3... e6 {[%clk 0:02:59.3]} 4.
c3 {[%clk 0:03:00.1]} 4... Nf6 {[%clk 0:02:58.5]} 5. e5 {[%clk 0:03:00]} 5...
Nfd7 {[%clk 0:02:58.1]} 6. d4 {[%clk 0:03:00.7]} 6... c5 {[%clk 0:02:57.6]} 7.
Bd3 {[%clk 0:03:01.1]} 7... Nc6 {[%clk 0:02:58.1]} 8. O-O {[%clk 0:03:01.3]}
8... Be7 {[%clk 0:02:56]} 9. a3 {[%clk 0:03:00.4]} 9... O-O {[%clk 0:02:54.3]}
10. Qc2 {[%clk 0:02:59.9]} 10... h6 {[%clk 0:02:35.8]} 11. b4 {[%clk 0:02:56.6]}
11... c4 {[%clk 0:02:31.4]} 12. Be2 {[%clk 0:02:56.1]} 12... f6 {[%clk 0:02:32]}
13. exf6 {[%clk 0:02:55.8]} 13... Bxf6 {[%clk 0:02:29.8]} 14. Re1 {[%clk
0:02:47.6]} 14... b5 {[%clk 0:02:09.9]} 15. Be3 {[%clk 0:02:44.4]} 15... a5
{[%clk 0:02:09.4]} 16. Nbd2 {[%clk 0:02:44.2]} 16... Qc7 {[%clk 0:02:03.9]} 17.
Nf1 {[%clk 0:02:43.8]} 17... Kh8 {[%clk 0:01:55.2]} 18. Ng3 {[%clk 0:02:43]}
18... Bb7 {[%clk 0:01:40.6]} 19. Qd2 {[%clk 0:02:34.1]} 19... Nb6 {[%clk
0:01:24.6]} 20. Nh5 {[%clk 0:02:28.3]} 20... Na4 {[%clk 0:01:05.7]} 21. Nf4
{[%clk 0:02:24.2]} 21... Qf7 {[%clk 0:01:03.6]} 22. Qc2 {[%clk 0:02:23.7]} 22...
Rfe8 {[%clk 0:01:01.6]} 23. Ng6+ {[%clk 0:02:17]} 23... Kg8 {[%clk 0:01:00.6]}
24. Nfe5 {[%clk 0:02:13.4]} 24... Nxe5 {[%clk 0:00:57.7]} 25. dxe5 {[%clk
0:02:13.4]} 25... Bd8 {[%clk 0:00:51.3]} 26. Bh5 {[%clk 0:02:13.2]} 26... Qf5
{[%clk 0:00:37.1]} 27. Qxf5 {[%clk 0:02:09.4]} 27... exf5 {[%clk 0:00:38]} 28.
Bd4 {[%clk 0:02:09.3]} 28... Bb6 {[%clk 0:00:33.9]} 29. Nh4 {[%clk 0:01:59.6]}
29... Bxd4 {[%clk 0:00:17]} 30. cxd4 {[%clk 0:01:58.1]} 30... Rf8 {[%clk
0:00:15.2]} 31. e6 {[%clk 0:01:58.1]} 31... Bc6 {[%clk 0:00:08.9]} 32. e7 {[%clk
0:01:57.5]} 32... Rfb8 {[%clk 0:00:06]} 33. Nxf5 {[%clk 0:01:55.9]} 33... axb4
{[%clk 0:00:05.5]} 34. axb4 {[%clk 0:01:56.8]} 34... c3 {[%clk 0:00:06.1]} 35.
Nd6 {[%clk 0:01:55.7]} 35... c2 {[%clk 0:00:05.7]} 36. Bg6 {[%clk 0:01:43.4]}
36... Nb2 {[%clk 0:00:04.3]} 37. Rxa8 {[%clk 0:01:42.6]} 37... Rxa8 {[%clk
0:00:05.2]} 38. Bxc2 {[%clk 0:01:41.9]} 38... Nc4 {[%clk 0:00:04.6]} 39. e8=Q+
{[%clk 0:01:37.6]} 39... Bxe8 {[%clk 0:00:04.3]} 40. Rxe8+ {[%clk 0:01:36.1]}
40... Rxe8 {[%clk 0:00:04.6]} 41. Nxe8 {[%clk 0:01:36.6]} 41... Nb6 {[%clk
0:00:01.5]} 42. Nc7 {[%clk 0:01:36.7]} 1-0

[Event "Early-Titled-Tuesday-Blitz-March-05-2024"]
[Site "Chess.com"]
[Date "2024.03.05"]
[Round "9"]
[White "mishanick"]
[Black "Chessmissile07"]
[Result "1-0"]
[WhiteElo "3080"]
[BlackElo "2916"]
[TimeControl "180+1"]
[EndTime "9:45:24 PST"]
[Termination "mishanick won by resignation"]

1. d4 {[%clk 0:03:00.9]} 1... a6 {[%clk 0:02:52.2]} 2. c4 {[%clk 0:03:01.4]}
2... c6 {[%clk 0:02:37.7]} 3. Nc3 {[%clk 0:02:59.3]} 3... d5 {[%clk 0:02:36.6]}
4. e4 {[%clk 0:02:59.1]} 4... dxc4 {[%clk 0:02:33.6]} 5. Bxc4 {[%clk 0:02:58.6]}
5... b5 {[%clk 0:02:33.7]} 6. Bb3 {[%clk 0:02:58.9]} 6... e6 {[%clk 0:02:33.7]}
7. Nf3 {[%clk 0:02:58.8]} 7... Nf6 {[%clk 0:02:32.7]} 8. O-O {[%clk 0:02:58.5]}
8... Be7 {[%clk 0:02:32.5]} 9. Bg5 {[%clk 0:02:51.4]} 9... O-O {[%clk
0:02:21.4]} 10. e5 {[%clk 0:02:50.6]} 10... Nd5 {[%clk 0:02:18.3]} 11. Bxe7
{[%clk 0:02:50.8]} 11... Qxe7 {[%clk 0:02:18.4]} 12. Ne4 {[%clk 0:02:51.1]}
12... a5 {[%clk 0:02:15.7]} 13. a3 {[%clk 0:02:44.6]} 13... Ba6 {[%clk
0:02:10.8]} 14. Re1 {[%clk 0:02:37.8]} 14... Nd7 {[%clk 0:02:10.5]} 15. Rc1
{[%clk 0:02:36.8]} 15... Rac8 {[%clk 0:02:09.4]} 16. Nd6 {[%clk 0:02:33.4]}
16... Rc7 {[%clk 0:02:05.4]} 17. Qd2 {[%clk 0:02:30.3]} 17... b4 {[%clk
0:01:46.8]} 18. Bxd5 {[%clk 0:02:29]} 18... exd5 {[%clk 0:01:47.1]} 19. axb4
{[%clk 0:02:29.3]} 19... axb4 {[%clk 0:01:47.5]} 20. Qxb4 {[%clk 0:02:28.8]}
20... Ra8 {[%clk 0:01:05.7]} 21. Ra1 {[%clk 0:02:14.1]} 21... Nf8 {[%clk
0:01:03.9]} 22. Ra3 {[%clk 0:02:09.7]} 22... Rca7 {[%clk 0:01:02.1]} 23. Qd2
{[%clk 0:01:57.8]} 23... Ne6 {[%clk 0:00:57.8]} 24. Rea1 {[%clk 0:01:57.9]}
24... Bb5 {[%clk 0:00:53.9]} 25. Nc8 {[%clk 0:01:44.3]} 25... Qxa3 {[%clk
0:00:41.3]} 26. Rxa3 {[%clk 0:01:38.4]} 26... Rxa3 {[%clk 0:00:41]} 27. Ne7+
{[%clk 0:01:38.1]} 27... Kf8 {[%clk 0:00:41.5]} 28. bxa3 {[%clk 0:01:38.6]}
28... Kxe7 {[%clk 0:00:42]} 29. Qb4+ {[%clk 0:01:38.1]} 29... Ke8 {[%clk
0:00:39.1]} 30. h4 {[%clk 0:01:36.8]} 30... Ra4 {[%clk 0:00:36]} 31. Qd6 {[%clk
0:01:35.9]} 31... h6 {[%clk 0:00:36.1]} 32. h5 {[%clk 0:01:28.1]} 32... Ra6
{[%clk 0:00:28.3]} 33. Nh4 {[%clk 0:01:16.1]} 33... Nxd4 {[%clk 0:00:23.4]} 34.
e6 {[%clk 0:01:16.5]} 34... Nxe6 {[%clk 0:00:13.1]} 35. Nf5 {[%clk 0:01:16.3]}
35... Ra7 {[%clk 0:00:11.9]} 36. Qb8+ {[%clk 0:01:16.7]} 1-0

[Event "Early-Titled-Tuesday-Blitz-March-05-2024"]
[Site "Chess.com"]
[Date "2024.03.05"]
[Round "9"]
[White "cristianserban1"]
[Black "Mikhail_Golubev"]
[Result "1-0"]
[WhiteElo "2518"]
[BlackElo "2656"]
[TimeControl "180+1"]
[EndTime "9:45:26 PST"]
[Termination "cristianserban1 won by resignation"]

1. Nf3 {[%clk 0:02:57.6]} 1... d6 {[%clk 0:02:59.7]} 2. d4 {[%clk 0:02:57.3]}
2... Nf6 {[%clk 0:02:59.6]} 3. c4 {[%clk 0:02:55.6]} 3... g6 {[%clk 0:02:59.1]}
4. Nc3 {[%clk 0:02:55.7]} 4... Bg7 {[%clk 0:02:59.7]} 5. e4 {[%clk 0:02:56.2]}
5... O-O {[%clk 0:03:00.2]} 6. Be2 {[%clk 0:02:56.9]} 6... e5 {[%clk 0:02:59.5]}
7. O-O {[%clk 0:02:57]} 7... Nc6 {[%clk 0:02:59.7]} 8. d5 {[%clk 0:02:57.2]}
8... Ne7 {[%clk 0:03:00.3]} 9. b4 {[%clk 0:02:57.7]} 9... Ne8 {[%clk 0:03:00.3]}
10. a4 {[%clk 0:02:56.5]} 10... f5 {[%clk 0:03:00.2]} 11. a5 {[%clk 0:02:57.1]}
11... Nf6 {[%clk 0:02:58.2]} 12. Nd2 {[%clk 0:02:57.4]} 12... f4 {[%clk
0:02:58.1]} 13. c5 {[%clk 0:02:56.2]} 13... g5 {[%clk 0:02:58.3]} 14. f3 {[%clk
0:02:56.3]} 14... Ng6 {[%clk 0:02:53.3]} 15. Ba3 {[%clk 0:02:53.2]} 15... Rf7
{[%clk 0:02:47.7]} 16. b5 {[%clk 0:02:50.9]} 16... Bf8 {[%clk 0:02:17.9]} 17.
cxd6 {[%clk 0:02:46.4]} 17... Bxd6 {[%clk 0:02:15.7]} 18. Nc4 {[%clk 0:02:44.7]}
18... Bxa3 {[%clk 0:01:54.7]} 19. Rxa3 {[%clk 0:02:44.4]} 19... Qf8 {[%clk
0:01:54.8]} 20. Kh1 {[%clk 0:02:17.7]} 20... h5 {[%clk 0:01:50.3]} 21. Rb3
{[%clk 0:02:11.4]} 21... g4 {[%clk 0:01:45.8]} 22. b6 {[%clk 0:02:08.1]} 22...
axb6 {[%clk 0:01:43.8]} 23. axb6 {[%clk 0:02:08.5]} 23... g3 {[%clk 0:01:29.2]}
24. bxc7 {[%clk 0:02:04]} 24... h4 {[%clk 0:01:26.6]} 25. h3 {[%clk 0:01:59.2]}
25... Bxh3 {[%clk 0:01:26.2]} 26. gxh3 {[%clk 0:01:58.9]} 26... g2+ {[%clk
0:01:09.8]} 27. Kxg2 {[%clk 0:01:58.6]} 27... Rg7 {[%clk 0:00:52.9]} 28. Kh2
{[%clk 0:01:58.6]} 28... Nh8 {[%clk 0:00:49.7]} 29. Nb6 {[%clk 0:01:53.4]} 29...
Rg3 {[%clk 0:00:43.8]} 30. Rg1 {[%clk 0:01:50.8]} 30... Nf7 {[%clk 0:00:41]} 31.
Rxg3+ {[%clk 0:01:48.5]} 31... hxg3+ {[%clk 0:00:40.5]} 32. Kg2 {[%clk
0:01:48.9]} 32... Ng5 {[%clk 0:00:24.5]} 33. Nxa8 {[%clk 0:01:39]} 33... Qxa8
{[%clk 0:00:24.2]} 34. Qh1 {[%clk 0:01:39.5]} 34... Kg7 {[%clk 0:00:20.1]} 35.
h4 {[%clk 0:01:38.4]} 35... Qa7 {[%clk 0:00:17.1]} 36. Qg1 {[%clk 0:01:32.5]}
36... Qa8 {[%clk 0:00:09.3]} 37. hxg5 {[%clk 0:01:30.8]} 37... Nh7 {[%clk
0:00:10]} 38. Qh1 {[%clk 0:01:29.3]} 38... Qa7 {[%clk 0:00:07.7]} 39. Qh6+
{[%clk 0:01:23.8]} 1-0

[Event "Early-Titled-Tuesday-Blitz-March-05-2024"]
[Site "Chess.com"]
[Date "2024.03.05"]
[Round "9"]
[White "shirovin"]
[Black "fandebobbyfischer"]
[Result "0-1"]
[WhiteElo "2059"]
[BlackElo "2690"]
[TimeControl "180+1"]
[EndTime "9:45:26 PST"]
[Termination "fandebobbyfischer won by resignation"]

1. c4 {[%clk 0:03:00.9]} 1... e5 {[%clk 0:02:53.7]} 2. g3 {[%clk 0:02:59.4]}
2... Nf6 {[%clk 0:02:53.6]} 3. Bg2 {[%clk 0:02:59.9]} 3... c6 {[%clk 0:02:51.8]}
4. Nc3 {[%clk 0:03:00]} 4... d5 {[%clk 0:02:51.4]} 5. cxd5 {[%clk 0:02:59.1]}
5... cxd5 {[%clk 0:02:52.3]} 6. d4 {[%clk 0:02:56]} 6... exd4 {[%clk 0:02:52.1]}
7. Qxd4 {[%clk 0:02:55.5]} 7... Nc6 {[%clk 0:02:52.4]} 8. Qd1 {[%clk 0:02:55]}
8... d4 {[%clk 0:02:51.1]} 9. Ne4 {[%clk 0:02:53.6]} 9... Be7 {[%clk 0:02:29.4]}
10. Nxf6+ {[%clk 0:02:45.8]} 10... Bxf6 {[%clk 0:02:30.3]} 11. Nf3 {[%clk
0:02:45.8]} 11... O-O {[%clk 0:02:30.7]} 12. O-O {[%clk 0:02:43.7]} 12... Bf5
{[%clk 0:02:31.3]} 13. h3 {[%clk 0:02:40.8]} 13... Re8 {[%clk 0:02:31.4]} 14. g4
{[%clk 0:02:40.2]} 14... Bg6 {[%clk 0:02:31.5]} 15. Bf4 {[%clk 0:02:30.1]} 15...
Qb6 {[%clk 0:02:29.8]} 16. g5 {[%clk 0:02:15.7]} 16... Be7 {[%clk 0:02:29.6]}
17. b3 {[%clk 0:02:10.8]} 17... Rad8 {[%clk 0:02:25.8]} 18. Ne5 {[%clk
0:02:09.9]} 18... Nxe5 {[%clk 0:02:25.7]} 19. Bxe5 {[%clk 0:02:09.6]} 19... Bxg5
{[%clk 0:02:25.3]} 20. f4 {[%clk 0:02:07.8]} 20... d3+ {[%clk 0:02:25.6]} 21.
Kh2 {[%clk 0:01:47.7]} 21... Bh5 {[%clk 0:01:34.9]} 22. Bf3 {[%clk 0:01:40.5]}
22... Bxf4+ {[%clk 0:01:34.7]} 23. Bxf4 {[%clk 0:01:32.2]} 23... dxe2 {[%clk
0:01:34.8]} 24. Qc2 {[%clk 0:01:03.9]} 24... exf1=N+ {[%clk 0:01:29.5]} 25. Rxf1
{[%clk 0:01:04.4]} 25... Bxf3 {[%clk 0:01:27.8]} 26. Rxf3 {[%clk 0:01:04.4]}
26... Qc6 {[%clk 0:01:21.9]} 27. Qg2 {[%clk 0:00:58.4]} 27... Re6 {[%clk
0:01:19.4]} 28. Bg5 {[%clk 0:00:35.1]} 28... Rde8 {[%clk 0:01:19.3]} 29. Rf2
{[%clk 0:00:13]} 29... Qxg2+ {[%clk 0:01:14]} 30. Kxg2 {[%clk 0:00:13.6]} 30...
Rg6 {[%clk 0:01:13.9]} 31. h4 {[%clk 0:00:09.4]} 31... h6 {[%clk 0:01:13.7]} 32.
Kf3 {[%clk 0:00:10]} 32... hxg5 {[%clk 0:01:13.4]} 33. Re2 {[%clk 0:00:10.9]}
33... Rf6+ {[%clk 0:01:13.4]} 0-1

[Event "Early-Titled-Tuesday-Blitz-March-05-2024"]
[Site "Chess.com"]
[Date "2024.03.05"]
[Round "9"]
[White "Firouzja2003"]
[Black "Oleksandr_Bortnyk"]
[Result "1-0"]
[WhiteElo "3228"]
[BlackElo "2984"]
[TimeControl "180+1"]
[EndTime "9:45:30 PST"]
[Termination "Firouzja2003 won by checkmate"]

1. e4 {[%clk 0:03:00.9]} 1... Nf6 {[%clk 0:02:59.9]} 2. e5 {[%clk 0:03:00.6]}
2... Nd5 {[%clk 0:03:00.4]} 3. d4 {[%clk 0:03:00.9]} 3... d6 {[%clk 0:03:00.9]}
4. c4 {[%clk 0:03:01.6]} 4... Nb6 {[%clk 0:03:01.2]} 5. exd6 {[%clk 0:03:02.3]}
5... exd6 {[%clk 0:03:01]} 6. h3 {[%clk 0:03:02.8]} 6... Be7 {[%clk 0:02:58.8]}
7. Nf3 {[%clk 0:03:03.2]} 7... O-O {[%clk 0:02:54.1]} 8. Bd3 {[%clk 0:03:03.4]}
8... Nc6 {[%clk 0:02:54.1]} 9. Nc3 {[%clk 0:03:00.1]} 9... Nb4 {[%clk
0:02:52.4]} 10. Bb1 {[%clk 0:02:58.7]} 10... Bf6 {[%clk 0:02:42.7]} 11. O-O
{[%clk 0:02:56]} 11... Re8 {[%clk 0:02:37]} 12. Ne4 {[%clk 0:02:33.4]} 12... Bf5
{[%clk 0:02:23.5]} 13. Nxd6 {[%clk 0:02:26.5]} 13... Qxd6 {[%clk 0:02:00.5]} 14.
Bxf5 {[%clk 0:02:26.4]} 14... Nxc4 {[%clk 0:01:55.2]} 15. a3 {[%clk 0:02:26.8]}
15... Qd5 {[%clk 0:01:38.3]} 16. Bxh7+ {[%clk 0:02:15.3]} 16... Kxh7 {[%clk
0:01:39.2]} 17. axb4 {[%clk 0:02:15.5]} 17... a6 {[%clk 0:01:27.2]} 18. Bf4
{[%clk 0:02:09.7]} 18... c6 {[%clk 0:01:20]} 19. b3 {[%clk 0:01:49.1]} 19... Nd6
{[%clk 0:01:18.4]} 20. Rc1 {[%clk 0:01:46.9]} 20... Ne4 {[%clk 0:01:06.8]} 21.
Qd3 {[%clk 0:01:41.8]} 21... Rad8 {[%clk 0:01:02.8]} 22. Rc5 {[%clk 0:01:35.8]}
22... Qd7 {[%clk 0:00:43.9]} 23. Be5 {[%clk 0:01:31.2]} 23... Qf5 {[%clk
0:00:31.4]} 24. Bxf6 {[%clk 0:01:30.9]} 24... Qxf6 {[%clk 0:00:32.3]} 25. Ng5+
{[%clk 0:01:31.2]} 25... Kg8 {[%clk 0:00:30]} 26. Nxe4 {[%clk 0:01:31.6]} 26...
Qg6 {[%clk 0:00:30.6]} 27. f3 {[%clk 0:01:31.3]} 27... Re6 {[%clk 0:00:24.3]}
28. Rg5 {[%clk 0:01:26.5]} 28... Qh6 {[%clk 0:00:23]} 29. Rc5 {[%clk 0:01:04.5]}
29... Qg6 {[%clk 0:00:19.6]} 30. Qd2 {[%clk 0:01:03.6]} 30... f5 {[%clk
0:00:19.4]} 31. Qg5 {[%clk 0:00:58.7]} 31... Qxg5 {[%clk 0:00:15]} 32. Nxg5
{[%clk 0:00:59]} 32... Re3 {[%clk 0:00:13.1]} 33. Re5 {[%clk 0:00:56.2]} 33...
Rxb3 {[%clk 0:00:12.9]} 34. Rfe1 {[%clk 0:00:56.6]} 34... Rxb4 {[%clk 0:00:13]}
35. Re8+ {[%clk 0:00:56.5]} 35... Rxe8 {[%clk 0:00:12.7]} 36. Rxe8# {[%clk
0:00:57.4]} 1-0

[Event "Early-Titled-Tuesday-Blitz-March-05-2024"]
[Site "Chess.com"]
[Date "2024.03.05"]
[Round "9"]
[White "Cheer_Down"]
[Black "LangesNasenhaar"]
[Result "1/2-1/2"]
[WhiteElo "2419"]
[BlackElo "2511"]
[TimeControl "180+1"]
[EndTime "9:45:30 PST"]
[Termination "Game drawn - insufficient material"]

1. e4 {[%clk 0:03:00.9]} 1... g6 {[%clk 0:03:00.3]} 2. d4 {[%clk 0:03:00.1]}
2... Bg7 {[%clk 0:03:00.7]} 3. Nc3 {[%clk 0:02:59.8]} 3... c6 {[%clk 0:03:01.3]}
4. Nf3 {[%clk 0:02:59.1]} 4... d5 {[%clk 0:03:01.7]} 5. h3 {[%clk 0:02:59]} 5...
Nf6 {[%clk 0:02:59.9]} 6. e5 {[%clk 0:02:56.2]} 6... Ne4 {[%clk 0:02:59.9]} 7.
Bd3 {[%clk 0:02:56.7]} 7... Nxc3 {[%clk 0:02:59.3]} 8. bxc3 {[%clk 0:02:56.8]}
8... c5 {[%clk 0:03:00.2]} 9. dxc5 {[%clk 0:02:51.2]} 9... Nc6 {[%clk
0:02:59.7]} 10. Bf4 {[%clk 0:02:47.8]} 10... Qa5 {[%clk 0:02:58.7]} 11. Qd2
{[%clk 0:02:35.4]} 11... Qxc5 {[%clk 0:02:58.6]} 12. O-O {[%clk 0:02:35.3]}
12... O-O {[%clk 0:02:58]} 13. Rab1 {[%clk 0:02:34.5]} 13... Qa5 {[%clk
0:02:50.2]} 14. Rfe1 {[%clk 0:02:23.6]} 14... a6 {[%clk 0:02:24.3]} 15. Bh6
{[%clk 0:02:20.7]} 15... Qc7 {[%clk 0:02:13.8]} 16. Qf4 {[%clk 0:02:18.9]} 16...
Be6 {[%clk 0:01:59.8]} 17. Qh4 {[%clk 0:02:18.3]} 17... Nxe5 {[%clk 0:01:48.1]}
18. Nxe5 {[%clk 0:02:14]} 18... Bxe5 {[%clk 0:01:48.3]} 19. Bxf8 {[%clk
0:02:10.4]} 19... Rxf8 {[%clk 0:01:48.3]} 20. c4 {[%clk 0:02:07.7]} 20... dxc4
{[%clk 0:01:44.7]} 21. Bxc4 {[%clk 0:02:07.1]} 21... Bxc4 {[%clk 0:01:19.6]} 22.
Rxe5 {[%clk 0:02:07.2]} 22... Qxe5 {[%clk 0:01:15.9]} 23. Qxc4 {[%clk
0:02:07.2]} 23... b5 {[%clk 0:01:13.8]} 24. Qc6 {[%clk 0:02:03.4]} 24... Qf6
{[%clk 0:01:13.7]} 25. Qxf6 {[%clk 0:01:58]} 25... exf6 {[%clk 0:01:14]} 26. a4
{[%clk 0:01:58.5]} 26... Rb8 {[%clk 0:00:59.5]} 27. axb5 {[%clk 0:01:55.3]}
27... axb5 {[%clk 0:00:55.9]} 28. Rb4 {[%clk 0:01:55.1]} 28... Rc8 {[%clk
0:00:50.7]} 29. Rxb5 {[%clk 0:01:54.4]} 29... Rxc2 {[%clk 0:00:50.6]} 30. g3
{[%clk 0:01:54.6]} 30... Kg7 {[%clk 0:00:50.7]} 31. h4 {[%clk 0:01:53.7]} 31...
h6 {[%clk 0:00:49.9]} 32. Kg2 {[%clk 0:01:53.8]} 32... h5 {[%clk 0:00:49.9]} 33.
Ra5 {[%clk 0:01:53.7]} 33... f5 {[%clk 0:00:49.2]} 34. Ra4 {[%clk 0:01:53.2]}
34... Rc6 {[%clk 0:00:49.5]} 35. Rb4 {[%clk 0:01:53.2]} 35... Kf6 {[%clk
0:00:50]} 36. Ra4 {[%clk 0:01:53.4]} 36... Re6 {[%clk 0:00:50.1]} 37. Rb4 {[%clk
0:01:53.5]} 37... Kg7 {[%clk 0:00:50.2]} 38. Ra4 {[%clk 0:01:53.7]} 38... f6
{[%clk 0:00:50.4]} 39. Ra7+ {[%clk 0:01:52.6]} 39... Kh6 {[%clk 0:00:50.5]} 40.
Ra4 {[%clk 0:01:52.6]} 40... g5 {[%clk 0:00:49.4]} 41. Rb4 {[%clk 0:01:51.4]}
41... gxh4 {[%clk 0:00:45.4]} 42. Rxh4 {[%clk 0:01:51.1]} 42... Re4 {[%clk
0:00:41.6]} 43. Kf3 {[%clk 0:01:48.5]} 43... Rg4 {[%clk 0:00:36.9]} 44. Rh1
{[%clk 0:01:45.5]} 44... Kg5 {[%clk 0:00:36.5]} 45. Ra1 {[%clk 0:01:38]} 45...
f4 {[%clk 0:00:36.7]} 46. Ra5+ {[%clk 0:01:34]} 46... f5 {[%clk 0:00:36.8]} 47.
Ra8 {[%clk 0:01:33]} 47... fxg3 {[%clk 0:00:36.9]} 48. fxg3 {[%clk 0:01:33.3]}
48... h4 {[%clk 0:00:29.3]} 49. Rg8+ {[%clk 0:01:30]} 49... Kf6 {[%clk
0:00:24.6]} 50. Rxg4 {[%clk 0:01:29.3]} 50... fxg4+ {[%clk 0:00:24.8]} 51. Kxg4
{[%clk 0:01:29.2]} 51... hxg3 {[%clk 0:00:25.2]} 52. Kxg3 {[%clk 0:01:29.6]}
1/2-1/2

[Event "Early-Titled-Tuesday-Blitz-March-05-2024"]
[Site "Chess.com"]
[Date "2024.03.05"]
[Round "9"]
[White "Lennis93"]
[Black "Actuary44"]
[Result "1-0"]
[WhiteElo "2705"]
[BlackElo "2543"]
[TimeControl "180+1"]
[EndTime "9:45:32 PST"]
[Termination "Lennis93 won by resignation"]

1. a3 {[%clk 0:03:00.9]} 1... d6 {[%clk 0:02:59.5]} 2. d4 {[%clk 0:03:00.5]}
2... Nf6 {[%clk 0:02:58.9]} 3. Nf3 {[%clk 0:03:00.9]} 3... g6 {[%clk 0:02:59]}
4. Nc3 {[%clk 0:02:59.8]} 4... Bg7 {[%clk 0:02:57.3]} 5. e4 {[%clk 0:02:59.6]}
5... O-O {[%clk 0:02:55.3]} 6. h3 {[%clk 0:02:59.9]} 6... c5 {[%clk 0:02:55.5]}
7. dxc5 {[%clk 0:02:58.6]} 7... dxc5 {[%clk 0:02:55.3]} 8. Qxd8 {[%clk
0:02:58.8]} 8... Rxd8 {[%clk 0:02:56.2]} 9. Be3 {[%clk 0:02:55]} 9... b6 {[%clk
0:02:56]} 10. Bc4 {[%clk 0:02:48.7]} 10... Bb7 {[%clk 0:02:55.4]} 11. e5 {[%clk
0:02:48]} 11... Nd5 {[%clk 0:02:40.5]} 12. O-O-O {[%clk 0:02:41.9]} 12... e6
{[%clk 0:02:39.9]} 13. Bg5 {[%clk 0:02:41.7]} 13... Re8 {[%clk 0:02:22.5]} 14.
Nxd5 {[%clk 0:02:34.7]} 14... exd5 {[%clk 0:02:22.4]} 15. Bxd5 {[%clk 0:02:35]}
15... Bxd5 {[%clk 0:02:06.4]} 16. Rxd5 {[%clk 0:02:35.9]} 16... Nc6 {[%clk
0:02:06.8]} 17. Re1 {[%clk 0:02:29.3]} 17... h6 {[%clk 0:02:04.3]} 18. Bf4
{[%clk 0:02:05.6]} 18... Re6 {[%clk 0:02:02.4]} 19. h4 {[%clk 0:02:01.2]} 19...
Rae8 {[%clk 0:02:01.5]} 20. Re3 {[%clk 0:02:01]} 20... Rd8 {[%clk 0:01:22.4]}
21. c4 {[%clk 0:01:59.2]} 21... Kf8 {[%clk 0:01:21.3]} 22. Red3 {[%clk
0:01:57.1]} 22... Ke8 {[%clk 0:01:16.4]} 23. Kd2 {[%clk 0:01:47.3]} 23... Re7
{[%clk 0:01:04.8]} 24. Kc3 {[%clk 0:01:40.6]} 24... Red7 {[%clk 0:00:43.6]} 25.
b4 {[%clk 0:01:40]} 25... cxb4+ {[%clk 0:00:40.3]} 26. axb4 {[%clk 0:01:39.9]}
26... Bf8 {[%clk 0:00:39.3]} 27. b5 {[%clk 0:01:34.6]} 27... Ne7 {[%clk
0:00:23]} 28. Rxd7 {[%clk 0:01:23.3]} 28... Rxd7 {[%clk 0:00:23.9]} 29. Nd4
{[%clk 0:01:19.8]} 29... Bg7 {[%clk 0:00:17.2]} 30. Bg3 {[%clk 0:01:14.6]} 30...
g5 {[%clk 0:00:17.3]} 31. h5 {[%clk 0:01:11.1]} 31... f5 {[%clk 0:00:16.5]} 32.
f4 {[%clk 0:01:06.1]} 32... gxf4 {[%clk 0:00:07.8]} 33. Bxf4 {[%clk 0:01:07]}
33... Rc7 {[%clk 0:00:03.2]} 34. Ne6 {[%clk 0:01:05.9]} 1-0

[Event "Early-Titled-Tuesday-Blitz-March-05-2024"]
[Site "Chess.com"]
[Date "2024.03.05"]
[Round "9"]
[White "Flaccidmoves"]
[Black "averageFM"]
[Result "1-0"]
[WhiteElo "2468"]
[BlackElo "2593"]
[TimeControl "180+1"]
[EndTime "9:45:38 PST"]
[Termination "Flaccidmoves won by resignation"]

1. c4 {[%clk 0:03:00.9]} 1... Nf6 {[%clk 0:01:55.3]} 2. Nc3 {[%clk 0:02:59.9]}
2... e6 {[%clk 0:01:55.2]} 3. e4 {[%clk 0:02:59.8]} 3... d5 {[%clk 0:01:53.8]}
4. e5 {[%clk 0:02:59.3]} 4... d4 {[%clk 0:01:46.6]} 5. exf6 {[%clk 0:02:58]}
5... dxc3 {[%clk 0:01:46.7]} 6. bxc3 {[%clk 0:02:55.9]} 6... Qxf6 {[%clk
0:01:45.5]} 7. Bd3 {[%clk 0:02:53.4]} 7... Bd7 {[%clk 0:01:42.5]} 8. Be4 {[%clk
0:02:44.8]} 8... Bc6 {[%clk 0:01:42.3]} 9. Qe2 {[%clk 0:02:40.7]} 9... Qe5
{[%clk 0:01:33]} 10. Bxc6+ {[%clk 0:02:33.9]} 10... Nxc6 {[%clk 0:01:30.9]} 11.
Nf3 {[%clk 0:02:29.3]} 11... Qxe2+ {[%clk 0:01:29.7]} 12. Kxe2 {[%clk
0:02:30.2]} 12... O-O-O {[%clk 0:01:30]} 13. d4 {[%clk 0:02:27.7]} 13... Na5
{[%clk 0:01:29.5]} 14. Ne5 {[%clk 0:02:23.9]} 14... Re8 {[%clk 0:01:16.2]} 15.
Nxf7 {[%clk 0:02:22.1]} 15... Rg8 {[%clk 0:01:16.3]} 16. Kd3 {[%clk 0:02:05.6]}
16... Bd6 {[%clk 0:01:12.8]} 17. c5 {[%clk 0:02:00.5]} 17... Rgf8 {[%clk
0:01:00.5]} 18. Nxd6+ {[%clk 0:01:43.4]} 18... cxd6 {[%clk 0:01:00.1]} 19. cxd6
{[%clk 0:01:15.4]} 19... Rxf2 {[%clk 0:00:59.2]} 20. Bg5 {[%clk 0:01:05.5]}
20... Kd7 {[%clk 0:00:57]} 21. Rhf1 {[%clk 0:00:48.7]} 21... Ref8 {[%clk
0:00:51.1]} 22. Rxf2 {[%clk 0:00:45.4]} 22... Rxf2 {[%clk 0:00:52]} 23. Bh4
{[%clk 0:00:40.8]} 23... Rxg2 {[%clk 0:00:49.3]} 24. Bg3 {[%clk 0:00:36.3]}
24... Nc6 {[%clk 0:00:46]} 25. Rf1 {[%clk 0:00:34.5]} 25... Nd8 {[%clk
0:00:45.8]} 26. Rf8 {[%clk 0:00:32.3]} 26... Rxa2 {[%clk 0:00:36.4]} 27. Rg8
{[%clk 0:00:31.4]} 27... Nc6 {[%clk 0:00:30.2]} 28. Rxg7+ {[%clk 0:00:30.9]}
28... Kc8 {[%clk 0:00:30.5]} 29. d7+ {[%clk 0:00:30.8]} 29... Kd8 {[%clk
0:00:29.7]} 30. Bh4+ {[%clk 0:00:28.7]} 1-0